fUST/lending_fUST_20260222
["ID","MTS","AMOUNT","RATE_DAILY","PERIOD"]
[406340279,1771767057948,-500.0,0.00038904,16]
[406340280,1771767057958,-500.0,0.00038904,16]
[406340281,1771767057967,-6738.06,0.00038904,16]
[406340282,1771767057976,-336.89625219,0.00038904,16]
[406340283,1771767057986,-267.09109644,0.00038904,16]
[406340284,1771767057995,-500.0,0.00038904,16]
[406340285,1771767058005,-500.0,0.00038904,16]
[406340286,1771767058014,-355.95428431,0.00038904,16]
[406340287,1771767058024,-579.29920542,0.00038904,16]
[406340288,1771767058034,-500.0,0.00038904,16]
[406340289,1771767058045,-500.0,0.00038904,16]
[406340290,1771767058055,-500.0,0.00038904,16]
[406340291,1771767058064,-500.0,0.00038904,16]
[406340292,1771767058073,-413.29595259,0.00038904,16]
[406340293,1771767058083,-842.33,0.00038904,16]
[406340294,1771767058092,-500.0,0.00038904,16]
[406340295,1771767058101,-500.0,0.00038904,16]
[406340296,1771767058111,-623.9345072,0.00038904,16]
[406340297,1771767058120,-500.0,0.00038904,16]
[406340298,1771767058130,-619.52,0.00038904,16]
[406340299,1771767058139,-502.03621144,0.00038904,16]
[406340300,1771767058148,-483.04337473,0.00038904,16]
[406340301,1771767058158,-500.0,0.00038904,16]
[406340302,1771767058167,-500.0,0.00038904,16]
[406340303,1771767058176,-165.93862798,0.00038904,16]
[406340304,1771767058186,-500.0,0.00038904,16]
[406340305,1771767058196,-500.0,0.00038904,16]
[406340306,1771767058206,-500.0,0.00038904,16]
[406340307,1771767058216,-500.0,0.00038904,16]
[406340308,1771767058225,-500.0,0.00038904,16]
[406340309,1771767058235,-500.0,0.00038904,16]
[406340310,1771767058244,-500.0,0.00038904,16]
[406340311,1771767058254,-500.0,0.00038904,16]
[406340312,1771767058264,-500.0,0.00038904,16]
[406340313,1771767058273,-500.0,0.00038904,16]
[406340314,1771767058283,-1217.76,0.00038904,16]
[406340315,1771767058293,-500.0,0.00038904,16]
[406340316,1771767058302,-342.9020972,0.00038904,16]
[406340317,1771767058312,-500.0,0.00038904,16]
[406340318,1771767058321,-500.0,0.00038904,16]
[406340319,1771767058331,-392.99128754,0.00038904,16]
[406340320,1771767058341,-500.0,0.00038904,16]
[406340321,1771767058350,-236.42680283,0.00038904,16]
[406340322,1771767058359,-1488.83298635,0.00039,20]
[406340323,1771767058368,-194.58019878,0.00039,2]
[406340324,1771767058378,-600.0,0.00039,120]
[406340325,1771767058387,-1022.53,0.00039,14]
[406340326,1771767058397,-512.0,0.00039123,120]
[406340327,1771767058406,-500.0,0.00039178,16]
[406340328,1771767058416,-500.0,0.00039178,16]
[406340329,1771767058425,-500.0,0.00039178,16]
[406340330,1771767058435,-356.33329343,0.00039178,16]
[406340331,1771767058444,-500.0,0.00039178,16]
[406340332,1771767058454,-1000.0,0.00039178,2]
[406340333,1771767058463,-500.0,0.00039178,16]
[406340334,1771767058472,-500.0,0.00039178,16]
[406340335,1771767058482,-500.0,0.00039178,16]
[406340336,1771767058491,-500.0,0.00039178,16]
[406340337,1771767058499,-500.0,0.00039178,16]
[406340338,1771767058508,-500.0,0.00039178,16]
[406340339,1771767058518,-200.0,0.00039178,16]
[406340340,1771767058527,-383.41766515,0.00039178,16]
[406340341,1771767058539,-500.0,0.00039178,16]
[406340342,1771767058548,-1000.0,0.00039178,2]
[406340343,1771767058558,-500.0,0.00039178,16]
[406340344,1771767058567,-580.85900897,0.00039178,16]
[406340345,1771767058577,-475.29814517,0.00039178,16]
[406340346,1771767058590,-500.0,0.00039178,16]
[406340347,1771767058599,-150.0,0.00039178,16]
[406340348,1771767058608,-500.0,0.00039178,16]
[406340349,1771767058618,-500.0,0.00039178,16]
[406340350,1771767058627,-500.0,0.00039178,7]
[406340351,1771767058637,-500.0,0.00039178,16]
[406340352,1771767058647,-500.0,0.00039178,16]
[406340353,1771767058657,-500.0,0.00039178,16]
[406340354,1771767058666,-500.0,0.00039178,16]
[406340355,1771767058676,-500.0,0.00039178,16]
[406340356,1771767058685,-500.0,0.00039178,16]
[406340357,1771767058695,-547.40403019,0.00039178,16]
[406340358,1771767058704,-6738.06,0.00039178,16]
[406340359,1771767058713,-500.0,0.00039178,16]
[406340360,1771767058722,-500.0,0.00039178,16]
[406340361,1771767058731,-197.61753569,0.00039178,16]
[406340362,1771767058741,-500.0,0.00039178,16]
[406340363,1771767058750,-500.0,0.00039178,16]
[406340364,1771767058760,-500.0,0.00039178,16]
[406340365,1771767058769,-842.33,0.00039178,16]
[406340366,1771767058778,-500.0,0.00039178,16]
[406340367,1771767058788,-500.0,0.00039178,16]
[406340368,1771767058797,-500.0,0.00039178,16]
[406340369,1771767058807,-619.52,0.00039178,16]
[406340370,1771767058816,-500.0,0.00039178,16]
[406340371,1771767058826,-500.0,0.00039178,16]
[406340372,1771767058835,-500.0,0.00039178,16]
[406340373,1771767058845,-546.98331015,0.00039178,16]
[406340374,1771767058854,-500.0,0.00039178,16]
[406340375,1771767058864,-500.0,0.00039178,16]
[406340376,1771767058873,-500.0,0.00039178,16]
[406340377,1771767058883,-500.0,0.00039178,16]
[406340378,1771767058892,-500.0,0.00039178,16]
[406340379,1771767058902,-383.8490101,0.00039178,16]
[406340380,1771767058911,-500.0,0.00039178,16]
[406340381,1771767058921,-312.78577259,0.00039178,16]
[406340382,1771767058932,-1217.76,0.00039178,16]
[406340383,1771767058943,-500.0,0.00039178,16]
[406340384,1771767058952,-500.0,0.00039178,16]
[406340385,1771767058962,-500.0,0.00039178,16]
[406340386,1771767058971,-500.0,0.00039178,16]
[406340387,1771767058980,-2047.84,0.00039278,2]
[406340388,1771767058990,-999.0,0.00039315,120]
[406340389,1771767058999,-159.97,0.000394,30]
[406340390,1771767059009,-24044.8,0.000394,2]
[406340391,1771767059018,-485.87106565,0.00039452,16]
[406340392,1771767059028,-500.0,0.00039452,16]
[406340393,1771767059039,-500.0,0.00039452,16]
[406340394,1771767059048,-500.0,0.00039452,16]
[406340395,1771767059057,-1000.0,0.00039452,2]
[406340396,1771767059066,-500.0,0.00039452,16]
[406340397,1771767059075,-500.0,0.00039452,16]
[406340398,1771767059085,-500.0,0.00039452,16]
[406340399,1771767059094,-500.0,0.00039452,16]
[406340400,1771767059104,-424.42677184,0.00039452,16]
[406340401,1771767059114,-293.03982887,0.00039452,16]
[406340402,1771767059124,-200.0,0.00039452,16]
[406340403,1771767059134,-622.17442588,0.00039452,16]
[406340404,1771767059144,-1000.0,0.00039452,2]
[406340405,1771767059153,-500.0,0.00039452,16]
[406340406,1771767059163,-500.0,0.00039452,16]
[406340407,1771767059173,-150.0,0.00039452,16]
[406340408,1771767059182,-500.0,0.00039452,16]
[406340409,1771767059193,-500.0,0.00039452,16]
[406340410,1771767059202,-500.0,0.00039452,7]
[406340411,1771767059317,-500.0,0.00039452,16]
[406340412,1771767059327,-500.0,0.00039452,16]
[406340413,1771767059339,-500.0,0.00039452,16]
[406340414,1771767059349,-500.0,0.00039452,16]
[406340415,1771767059360,-500.0,0.00039452,16]
[406340416,1771767059369,-500.0,0.00039452,16]
[406340417,1771767059379,-6738.06,0.00039452,16]
[406340418,1771767059388,-500.0,0.00039452,16]
[406340419,1771767059396,-500.0,0.00039452,16]
[406340420,1771767059405,-500.0,0.00039452,16]
[406340421,1771767059414,-500.0,0.00039452,16]
[406340422,1771767059423,-246.77033383,0.00039452,16]
[406340423,1771767059432,-842.33,0.00039452,16]
[406340424,1771767059441,-505.47263628,0.00039452,16]
[406340425,1771767059451,-500.0,0.00039452,16]
[406340426,1771767059460,-500.0,0.00039452,16]
[406340427,1771767059469,-619.52,0.00039452,16]
[406340428,1771767059479,-500.0,0.00039452,16]
[406340429,1771767059488,-411.11495927,0.00039452,16]
[406340430,1771767059497,-500.0,0.00039452,16]
[406340431,1771767059509,-500.0,0.00039452,16]
[406340432,1771767059518,-500.0,0.00039452,16]
[406340433,1771767059528,-500.0,0.00039452,16]
[406340434,1771767059537,-500.0,0.00039452,16]
[406340435,1771767059546,-500.0,0.00039452,16]
[406340436,1771767059556,-500.0,0.00039452,16]
[406340437,1771767059566,-1217.76,0.00039452,16]
[406340438,1771767059577,-500.0,0.00039452,16]
[406340439,1771767059589,-500.0,0.00039452,16]
[406340440,1771767059599,-500.0,0.00039452,16]
[406340441,1771767059609,-500.0,0.00039452,16]
[406340442,1771767059618,-1711.82203002,0.00039498,14]
[406340443,1771767059629,-867362.12371313,0.000395,2]
[406340444,1771767059639,-2047.84,0.00039553,2]
[406340445,1771767059648,-200.0,0.00039563,120]
[406340446,1771767059658,-245.95179815,0.0003966,2]
[406340447,1771767059667,-400.0,0.00039685,30]
[406340448,1771767059677,-373.0,0.00039685,30]
[406340449,1771767059686,-250.0,0.00039687,30]
[406340450,1771767059695,-250.0,0.00039687,30]
[406340451,1771767059705,-205.0,0.00039687,30]
[406340452,1771767059714,-500.0,0.00039726,16]
[406340453,1771767059724,-517.50245204,0.00039726,16]
[406340454,1771767059733,-511.52809335,0.00039726,16]
[406340455,1771767059743,-1000.0,0.00039726,2]
[406340456,1771767059752,-500.0,0.00039726,16]
[406340457,1771767059761,-500.0,0.00039726,16]
[406340458,1771767059771,-500.0,0.00039726,16]
[406340459,1771767059780,-500.0,0.00039726,16]
[406340460,1771767059789,-200.0,0.00039726,16]
[406340461,1771767059798,-1000.0,0.00039726,2]
[406340462,1771767059808,-500.0,0.00039726,16]
[406340463,1771767059817,-592.46505235,0.00039726,16]
[406340464,1771767059827,-150.0,0.00039726,16]
[406340465,1771767059836,-500.0,0.00039726,16]
[406340466,1771767059846,-500.0,0.00039726,16]
[406340467,1771767059855,-500.0,0.00039726,7]
[406340468,1771767059865,-500.0,0.00039726,16]
[406340469,1771767059874,-500.0,0.00039726,16]
[406340470,1771767059883,-500.0,0.00039726,16]
[406340471,1771767059892,-500.0,0.00039726,16]
[406340472,1771767059902,-500.0,0.00039726,16]
[406340473,1771767059912,-500.0,0.00039726,16]
[406340474,1771767059922,-6738.06,0.00039726,16]
[406340475,1771767059932,-500.0,0.00039726,16]
[406340476,1771767059941,-500.0,0.00039726,16]
[406340477,1771767059951,-500.0,0.00039726,16]
[406340478,1771767059960,-500.0,0.00039726,16]
[406340479,1771767059970,-842.33,0.00039726,16]
[406340480,1771767059979,-500.0,0.00039726,16]
[406340481,1771767059989,-500.0,0.00039726,16]
[406340482,1771767059998,-619.52,0.00039726,16]
[406340483,1771767060008,-500.0,0.00039726,16]
[406340484,1771767060018,-500.0,0.00039726,16]
[406340485,1771767060027,-500.0,0.00039726,16]
[406340486,1771767060037,-415.37147871,0.00039726,16]
[406340487,1771767060047,-300.51661826,0.00039726,16]
[406340488,1771767060056,-500.0,0.00039726,16]
[406340489,1771767060065,-500.0,0.00039726,16]
[406340490,1771767060075,-500.0,0.00039726,16]
[406340491,1771767060084,-1217.76,0.00039726,16]
[406340492,1771767060093,-500.0,0.00039726,16]
[406340493,1771767060103,-500.0,0.00039726,16]
[406340494,1771767060112,-500.0,0.00039726,16]
[406340495,1771767060121,-500.0,0.00039726,16]
[406340496,1771767060130,-612.60751935,0.0003978,20]
[406340497,1771767060140,-2047.84,0.00039829,2]
[406340498,1771767060149,-71930.84994918,0.00039895,15]
[406340499,1771767060159,-5790.0,0.000399,30]
[406340500,1771767060168,-500.0,0.0004,2]
[406340501,1771767060177,-210.26296895,0.0004,2]
[406340502,1771767060187,-1725.39,0.0004,7]
[406340503,1771767060196,-155.0,0.0004,30]
[406340504,1771767060205,-486.33233717,0.0004,16]
[406340505,1771767060215,-1000.0,0.0004,2]
[406340506,1771767060224,-500.0,0.0004,16]
[406340507,1771767060234,-500.0,0.0004,16]
[406340508,1771767060244,-538.58449015,0.0004,16]
[406340509,1771767060253,-500.0,0.0004,16]
[406340510,1771767060262,-200.0,0.0004,16]
[406340511,1771767060272,-1000.0,0.0004,2]
[406340512,1771767060281,-500.0,0.0004,16]
[406340513,1771767060291,-261.73337098,0.0004,16]
[406340514,1771767060300,-227.40592278,0.0004,16]
[406340515,1771767060309,-500.0,0.0004,16]
[406340516,1771767060318,-500.0,0.0004,7]
[406340517,1771767060327,-485.09584934,0.0004,16]
[406340518,1771767060336,-500.0,0.0004,16]
[406340519,1771767060345,-500.0,0.0004,16]
[406340520,1771767060355,-500.0,0.0004,16]
[406340521,1771767060364,-500.0,0.0004,16]
[406340522,1771767060374,-500.0,0.0004,16]
[406340523,1771767060383,-6738.06,0.0004,16]
[406340524,1771767060392,-500.0,0.0004,16]
[406340525,1771767060402,-500.0,0.0004,16]
[406340526,1771767060412,-467.06891754,0.0004,16]
[406340527,1771767060421,-500.0,0.0004,16]
[406340528,1771767060430,-842.33,0.0004,16]
[406340529,1771767060441,-500.0,0.0004,16]
[406340530,1771767060453,-256.38615446,0.0004,16]
[406340531,1771767060463,-619.52,0.0004,16]
[406340532,1771767060473,-267.2290074,0.0004,16]
[406340533,1771767060482,-500.0,0.0004,16]
[406340534,1771767060491,-500.0,0.0004,16]
[406340535,1771767060502,-588.05122659,0.0004,16]
[406340536,1771767060512,-500.0,0.0004,16]
[406340537,1771767060522,-500.0,0.0004,16]
[406340538,1771767060532,-1217.76,0.0004,16]
[406340539,1771767060542,-500.0,0.0004,16]
[406340540,1771767060552,-500.0,0.0004,16]
[406340541,1771767060562,-500.0,0.0004,16]
[406340542,1771767060571,-500.0,0.0004,16]
[406340543,1771767060581,-2047.84,0.00040105,2]
[406340544,1771767060595,-787.03559938,0.00040273,2]
[406340545,1771767060604,-193.94655105,0.00040273,16]
[406340546,1771767060614,-569.59607907,0.00040273,16]
[406340547,1771767060623,-500.0,0.00040273,16]
[406340548,1771767060632,-200.0,0.00040273,16]
[406340549,1771767060641,-1000.0,0.00040273,2]
[406340550,1771767060650,-500.0,0.00040273,16]
[406340551,1771767060659,-500.0,0.00040273,16]
[406340552,1771767060669,-500.0,0.00040273,7]
[406340553,1771767060678,-500.0,0.00040273,16]
[406340554,1771767060687,-500.0,0.00040273,16]
[406340555,1771767060696,-500.0,0.00040273,16]
[406340556,1771767060706,-500.0,0.00040273,16]
[406340557,1771767060715,-500.0,0.00040273,16]
[406340558,1771767060724,-6738.06,0.00040273,16]
[406340559,1771767060733,-500.0,0.00040273,16]
[406340560,1771767060742,-500.0,0.00040273,16]
[406340561,1771767060752,-500.0,0.00040273,16]
[406340562,1771767060761,-842.33,0.00040273,16]
[406340563,1771767060771,-500.0,0.00040273,16]
[406340564,1771767060780,-619.52,0.00040273,16]
[406340565,1771767060788,-999.0,0.00040273,120]
[406340566,1771767060798,-500.0,0.00040273,16]
[406340567,1771767060808,-500.0,0.00040273,16]
[406340568,1771767060818,-500.0,0.00040273,16]
[406340569,1771767060828,-500.0,0.00040273,16]
[406340570,1771767060837,-1217.76,0.00040273,16]
[406340571,1771767060847,-500.0,0.00040273,16]
[406340572,1771767060856,-500.0,0.00040273,16]
[406340573,1771767060865,-500.0,0.00040273,16]
[406340574,1771767060875,-500.0,0.00040273,16]
[406340575,1771767060885,-200.0,0.00040285,120]
[406340576,1771767060894,-3002.33576573,0.00040306,14]
[406340577,1771767060903,-200.0,0.00040331,120]
[406340578,1771767060912,-1143.85,0.00040367,60]
[406340579,1771767060922,-2047.84,0.0004038,2]
[406340580,1771767060931,-316.45716613,0.00040439,14]
[406340581,1771767060941,-218.04652439,0.00040478,12]
[406340582,1771767060950,-500.0,0.00040547,16]
[406340583,1771767060959,-200.0,0.00040547,16]
[406340584,1771767060968,-1000.0,0.00040547,2]
[406340585,1771767060977,-602.19989203,0.00040547,16]
[406340586,1771767060986,-500.0,0.00040547,16]
[406340587,1771767060995,-500.0,0.00040547,7]
[406340588,1771767061004,-500.0,0.00040547,16]
[406340589,1771767061013,-500.0,0.00040547,16]
[406340590,1771767061023,-500.0,0.00040547,16]
[406340591,1771767061032,-500.0,0.00040547,16]
[406340592,1771767061041,-489.80670836,0.00040547,16]
[406340593,1771767061051,-6738.06,0.00040547,16]
[406340594,1771767061060,-500.0,0.00040547,16]
[406340595,1771767061069,-500.0,0.00040547,16]
[406340596,1771767061078,-500.0,0.00040547,16]
[406340597,1771767061087,-842.33,0.00040547,16]
[406340598,1771767061097,-500.0,0.00040547,16]
[406340599,1771767061106,-619.52,0.00040547,16]
[406340600,1771767061115,-500.0,0.00040547,16]
[406340601,1771767061124,-398.06592097,0.00040547,16]
[406340602,1771767061133,-500.0,0.00040547,16]
[406340603,1771767061143,-500.0,0.00040547,16]
[406340604,1771767061154,-1217.76,0.00040547,16]
[406340605,1771767061163,-500.0,0.00040547,16]
[406340606,1771767061173,-500.0,0.00040547,16]
[406340607,1771767061182,-500.0,0.00040547,16]
[406340608,1771767061192,-546.41911793,0.00040547,16]
[406340609,1771767061202,-1773.06995277,0.00040559,14]
[406340610,1771767061211,-2047.84,0.00040656,2]
[406340611,1771767061220,-165.15,0.00040746,2]
[406340612,1771767061229,-500.0,0.00040821,16]
[406340613,1771767061238,-200.0,0.00040821,16]
[406340614,1771767061247,-1000.0,0.00040821,2]
[406340615,1771767061256,-500.0,0.00040821,16]
[406340616,1771767061266,-500.0,0.00040821,7]
[406340617,1771767061275,-500.0,0.00040821,16]
[406340618,1771767061284,-500.0,0.00040821,16]
[406340619,1771767061294,-500.0,0.00040821,16]
[406340620,1771767061304,-500.0,0.00040821,16]
[406340621,1771767061313,-6738.06,0.00040821,16]
[406340622,1771767061323,-500.0,0.00040821,16]
[406340623,1771767061331,-500.0,0.00040821,16]
[406340624,1771767061341,-500.0,0.00040821,16]
[406340625,1771767061350,-842.33,0.00040821,16]
[406340626,1771767061360,-500.0,0.00040821,16]
[406340627,1771767061369,-619.52,0.00040821,16]
[406340628,1771767061379,-500.0,0.00040821,16]
[406340629,1771767061389,-500.0,0.00040821,16]
[406340630,1771767061398,-500.0,0.00040821,16]
[406340631,1771767061407,-1217.76,0.00040821,16]
[406340632,1771767061416,-500.0,0.00040821,16]
[406340633,1771767061426,-250.08427557,0.00040821,16]
[406340634,1771767061436,-500.0,0.00040821,16]
[406340635,1771767061445,-2047.84,0.00040931,2]
[406340636,1771767061454,-510.12,0.00040993,120]
[406340637,1771767061464,-1500.0,0.00041,20]
[406340638,1771767061473,-500.0,0.00041095,16]
[406340639,1771767061483,-200.0,0.00041095,16]
[406340640,1771767061493,-1000.0,0.00041095,2]
[406340641,1771767061502,-275.22414284,0.00041095,16]
[406340642,1771767061512,-500.0,0.00041095,7]
[406340643,1771767061521,-376.4,0.00041095,16]
[406340644,1771767061531,-500.0,0.00041095,16]
[406340645,1771767061540,-500.0,0.00041095,16]
[406340646,1771767061550,-500.0,0.00041095,16]
[406340647,1771767061559,-6738.06,0.00041095,16]
[406340648,1771767061569,-500.0,0.00041095,16]
[406340649,1771767061579,-500.0,0.00041095,16]
[406340650,1771767061592,-500.0,0.00041095,16]
[406340651,1771767061601,-842.33,0.00041095,16]
[406340652,1771767061610,-500.0,0.00041095,16]
[406340653,1771767061620,-619.52,0.00041095,16]
[406340654,1771767061631,-162.89806428,0.00041095,16]
[406340655,1771767061640,-500.0,0.00041095,16]
[406340656,1771767061649,-500.0,0.00041095,16]
[406340657,1771767061661,-1217.76,0.00041095,16]
[406340658,1771767061670,-500.0,0.00041095,16]
[406340659,1771767061679,-500.0,0.00041095,16]
[406340660,1771767061688,-205.54,0.00041096,120]
[406340661,1771767061698,-2047.84,0.00041207,2]
[406340662,1771767061707,-999.0,0.00041232,120]
[406340663,1771767061716,-559.30736738,0.00041242,14]
[406340664,1771767061725,-500.0,0.00041369,16]
[406340665,1771767061734,-200.0,0.00041369,16]
[406340666,1771767061743,-1000.0,0.00041369,2]
[406340667,1771767061753,-500.0,0.00041369,7]
[406340668,1771767061762,-500.0,0.00041369,16]
[406340669,1771767061772,-500.0,0.00041369,16]
[406340670,1771767061781,-500.0,0.00041369,16]
[406340671,1771767061791,-6738.06,0.00041369,16]
[406340672,1771767061800,-500.0,0.00041369,16]
[406340673,1771767061810,-500.0,0.00041369,16]
[406340674,1771767061820,-500.0,0.00041369,16]
[406340675,1771767061830,-842.33,0.00041369,16]
[406340676,1771767061840,-628.6035492,0.00041369,16]
[406340677,1771767061849,-619.52,0.00041369,16]
[406340678,1771767061859,-500.0,0.00041369,16]
[406340679,1771767061869,-500.0,0.00041369,16]
[406340680,1771767061878,-1217.76,0.00041369,16]
[406340681,1771767061888,-384.31953837,0.00041369,16]
[406340682,1771767061898,-500.0,0.00041369,16]
[406340683,1771767061907,-2047.84,0.00041483,2]
[406340684,1771767061916,-1091.23568914,0.00041515,7]
[406340685,1771767061927,-3199.04857716,0.00041545,14]
[406340686,1771767061935,-2499.125168,0.00041566,2]
[406340687,1771767061945,-150.0,0.00041566,2]
[406340688,1771767061955,-300.0,0.00041566,2]
[406340689,1771767061964,-2664.69860312,0.00041566,21]
[406340690,1771767061974,-819.66012244,0.00041566,2]
[406340691,1771767061984,-515.58999274,0.00041566,2]
[406340692,1771767061993,-330.93613567,0.00041566,2]
[406340693,1771767062002,-1970.55367337,0.00041566,2]
[406340694,1771767062011,-295.35259784,0.00041566,2]
[406340695,1771767062020,-644.91572616,0.00041566,2]
[406340696,1771767062030,-1378.24169705,0.00041566,2]
[406340697,1771767062040,-158.50374891,0.00041566,2]
[406340698,1771767062149,-1802.00808712,0.00041566,2]
[406340699,1771767062158,-711.01141036,0.00041566,2]
[406340700,1771767062168,-159.47651504,0.00041566,2]
[406340701,1771767062178,-1738.72358268,0.00041566,2]
[406340702,1771767062188,-390.24981494,0.00041566,4]
[406340703,1771767062198,-433.60660169,0.00041566,2]
[406340704,1771767062207,-513.8231734,0.00041566,2]
[406340705,1771767062218,-186.13649346,0.00041566,2]
[406340706,1771767062229,-473.60335949,0.00041566,2]
[406340707,1771767062241,-4828.38262649,0.00041566,2]
[406340708,1771767062251,-2000.32838768,0.00041566,3]
[406340709,1771767062261,-1209.61787716,0.00041566,2]
[406340710,1771767062271,-191.46032846,0.00041566,2]
[406340711,1771767062281,-1413.86749084,0.00041566,2]
[406340712,1771767062292,-659.08779998,0.00041566,2]
[406340713,1771767062301,-2920.0,0.00041566,2]
[406340714,1771767062312,-200.56045543,0.00041566,2]
[406340715,1771767062322,-390.21716761,0.00041566,2]
[406340716,1771767062331,-203.79153489,0.00041566,2]
[406340717,1771767062342,-184.95834916,0.00041566,5]
[406340718,1771767062351,-3186.46552152,0.00041566,2]
[406340719,1771767062361,-152.16312861,0.00041566,2]
[406340720,1771767062374,-261.74648207,0.00041566,2]
[406340721,1771767062388,-3814.28332909,0.00041566,2]
[406340722,1771767062398,-3820.45818067,0.00041566,2]
[406340723,1771767062407,-1955.94735593,0.00041566,5]
[406340724,1771767062416,-677.36040106,0.00041566,2]
[406340725,1771767062426,-1262.39625911,0.00041566,5]
[406340726,1771767062435,-1681.07263183,0.00041566,2]
[406340727,1771767062444,-371.27989863,0.00041566,5]
[406340728,1771767062454,-153.60922703,0.00041566,2]
[406340729,1771767062464,-327.68617046,0.00041566,2]
[406340730,1771767062474,-329.51349111,0.00041566,2]
[406340731,1771767062483,-1653.58947277,0.00041566,2]
[406340732,1771767062492,-259.18001811,0.00041566,2]
[406340733,1771767062502,-535.73127414,0.00041566,7]
[406340734,1771767062511,-20934.0,0.00041566,15]
[406340735,1771767062521,-626.19644564,0.00041566,7]
[406340736,1771767062530,-161393.23006736,0.00041566,9]
[406340737,1771767062539,-1003.75680832,0.00041566,7]
[406340738,1771767062549,-19911.0,0.00041566,2]
[406340739,1771767062559,-22008.577764,0.00041566,7]
[406340740,1771767062568,-189.76,0.00041566,21]
[406340741,1771767062578,-200.86192986,0.00041566,2]
[406340742,1771767062591,-623.7624,0.00041566,120]
[406340743,1771767062600,-179223.36898613,0.00041566,30]
[406340744,1771767062610,-5000.0,0.00041566,30]
[406340745,1771767062620,-323.57835237,0.00041566,120]
[406340746,1771767062640,-4392.88667872,0.00041566,35]
[406340747,1771767062660,-600.0,0.00041566,120]
[406340748,1771767062671,-403.12,0.00041566,120]
[406340749,1771767062682,-173.13699467,0.00041566,120]
[406340750,1771767062693,-165.55598906,0.00041566,120]
[406340751,1771767062702,-165.55598906,0.00041566,120]
[406340752,1771767062715,-165.55598906,0.00041566,120]
[406340753,1771767062725,-165.55598906,0.00041566,120]
[406340754,1771767062739,-165.55598906,0.00041566,120]
[406340755,1771767062751,-165.55598906,0.00041566,120]
[406340756,1771767062761,-165.55598906,0.00041566,120]
[406340757,1771767062772,-165.55598906,0.00041566,120]
[406340758,1771767062781,-18137.0,0.00041566,120]
[406340759,1771767062792,-1585.66797572,0.00041566,33]
[406340760,1771767062801,-11097.94675381,0.00041566,30]
[406340761,1771767062812,-150.0,0.00041566,120]
[406340762,1771767062822,-416.05,0.00041566,120]
[406340763,1771767062831,-10000.0,0.00041566,30]
[406340764,1771767062841,-6834.47,0.00041566,30]
[406340765,1771767062851,-5104.9838964,0.00041566,30]
[406340766,1771767062860,-360.38218187,0.00041566,120]
[406340767,1771767062869,-535933.86175092,0.00041566,30]
[406340768,1771767062879,-5502.52626048,0.00041566,30]
[406340769,1771767062888,-36142.07922659,0.00041566,30]
[406340770,1771767062898,-6551.93710412,0.00041566,30]
[406340771,1771767062908,-29132.01512576,0.00041566,30]
[406340772,1771767062917,-42598.68326683,0.00041566,30]
[406340773,1771767062927,-784.37452313,0.00041566,30]
[406340774,1771767062936,-22291.35342675,0.00041566,30]
[406340775,1771767062946,-18863.54938986,0.00041566,30]
[406340776,1771767062955,-263040.3006486,0.00041566,30]
[406340777,1771767062965,-538.2447162,0.00041566,30]
[406340778,1771767062974,-1067.86373683,0.00041566,30]